[Event "EYCC Girls-U12 2019"]
[Site "Bratislava"]
[Date "2019.08.02"]
[Round "1.9"]
[White "Mikhailina, Olga"]
[Black "Zhou, Lepu Coco"]
[Result "1/2-1/2"]
[ECO "C55"]
[WhiteElo "1410"]
[BlackElo "1861"]
[Annotator "NA"]
[PlyCount "110"]
[EventDate "2019.08.02"]
[EventType "swiss"]
[EventCountry "SVK"]
[SourceTitle "playchess.com"]
[Source "ChessBase"]
[SourceQuality "1"]
[TimeControl "40/5400+30:1800+30"]

1. e4 {[%emt 0:02:21]} e5 {[%emt 0:00:00]} 2. Nf3 {[%emt 0:00:11]} Nc6 {[%emt 0:00:00]} 3. Bc4 {[%emt 0:00:11]} Nf6 {[%emt 0:00:00]} 4. d3 {[%emt 0:00:14]} Be7 {[%emt 0:00:21]} 5. c3 {[%emt 0:00:48]} d6 {[%emt 0:00:17]} 6. Bb3 {[%emt 0:01:56]} O-O {[%emt 0:00:19]} 7. O-O {[%emt 0:01:00]} Na5 {[%emt 0:01:35]} 8. Bc2 {[%emt 0:03:43]} c5 {[%emt 0:00:38]} 9. d4 {[%emt 0:07:22]} cxd4 {[%emt 0:05:20]} 10. cxd4 {[%emt 0:00:06]} Bg4 {[%emt 0:00:18]} 11. dxe5 {[%emt 0:21:11]} Bxf3 {[%emt 0:01:47]} 12. Qxf3 {[%emt 0:00:05]} dxe5 {[%emt 0:00:10]} 13. Rd1 {[%emt 0:02:50]} Qc7 {[%emt 0:00:31]} 14. Qc3 {[%emt 0:15:02]} Qxc3 {[%emt 0:03:41]} 15. Nxc3 {[%emt 0:00:24]} Nc6 {[%emt 0:00:36]} 16. Be3 {[%emt 0:05:20]} Ng4 {[%emt 0:02:16]} 17. Nd5 {[%emt 0:07:03]} Nxe3 {[%emt 0:00:44]} 18. Nxe3 {[%emt 0:00:40]} Nd4 {[%emt 0:01:25]} 19. Bd3 {[%emt 0:03:04]} Rac8 {[%emt 0:02:13]} 20. Nc4 {[%emt 0:06:38]} f6 {[%emt 0:01:01]} 21. Ne3 {[%emt 0:00:25]} Rfd8 {[%emt 0:01:08]} 22. Nd5 {[%emt 0:01:13]} Kf8 {[%emt 0:01:39]} 23. Rac1 {[%emt 0:01:24]} g6 {[%emt 0:02:52]} 24. f3 {[%emt 0:14:33]} f5 {[%emt 0:03:15]} 25. Rc3 {[%emt 0:04:12]} Bc5 {[%emt 0:03:18]} 26. Kh1 {[%emt 0:00:28]} a5 {[%emt 0:01:41]} 27. Rdc1 {[%emt 0:00:27]} fxe4 {[%emt 0:01:19]} 28. fxe4 {[%emt 0:00:31]} Ne6 {[%emt 0:01:44]} 29. Be2 {[%emt 0:00:34]} b6 {[%emt 0:07:55]} 30. Bg4 {[%emt 0:00:32]} Rc6 {[%emt 0:04:08]} 31. Rf1+ {[%emt 0:00:28]} Kg7 {[%emt 0:00:38]} 32. Rf6 {[%emt 0:00:30]} Rf8 {[%emt 0:03:53]} 33. Rcf3 {[%emt 0:00:28]} Rxf6 {[%emt 0:03:17]} 34. Rxf6 {[%emt 0:00:30]} Bd4 {[%emt 0:02:27]} 35. h4 {[%emt 0:00:33]} Rc1+ {[%emt 0:00:59]} 36. Kh2 {[%emt 0:00:21]} Nf4 {[%emt 0:02:43]} 37. Rd6 {[%emt 0:00:33]} Nxd5 {[%emt 0:10:30]} 38. exd5 {[%emt 0:00:27]} e4 {[%emt 0:01:01]} 39. Re6 {[%emt 0:00:36]} Bg1+ {[%emt 0:01:52]} 40. Kg3 {[%emt 0:00:00]} h5 {[%emt 0:00:00]} 41. Be2 {[%emt 0:13:32]} Rc5 {[%emt 0:05:50]} 42. d6 {[%emt 0:04:25]} Rd5 {[%emt 0:00:58]} 43. Bc4 {[%emt 0:02:50]} Rd2 {[%emt 0:03:22]} 44. Bb5 {[%emt 0:02:49]} Kf7 {[%emt 0:00:30]} 45. Rxe4 {[%emt 0:04:46]} Rxd6 {[%emt 0:00:22]} 46. Rf4+ {[%emt 0:01:33]} Ke7 {[%emt 0:00:54]} 47. Rf1 {[%emt 0:01:23]} Bd4 {[%emt 0:01:53]} 48. Re1+ {[%emt 0:01:01]} Kf6 {[%emt 0:00:51]} 49. Rf1+ {[%emt 0:01:23]} Ke5 {[%emt 0:01:26]} 50. b3 {[%emt 0:01:51]} Kd5 {[%emt 0:00:44]} 51. Bc4+ {[%emt 0:00:27]} Kc5 {[%emt 0:00:14]} 52. Rc1 {[%emt 0:00:34]} Kb4 {[%emt 0:01:18]} 53. a4 {[%emt 0:00:28]} Be5+ {[%emt 0:00:51]} 54. Kh3 {[%emt 0:00:32]} Bf4 {[%emt 0:01:21]} 55. Re1 {[%emt 0:00:30]} Kc5 {[%emt 0:08:35]} 1/2-1/2

[Event "EYCC Girls-U12 2019"]
[Site "Bratislava"]
[Date "2019.08.02"]
[Round "1.10"]
[White "Bochnickova, Simona"]
[Black "Babajic, Ehlimana"]
[Result "1-0"]
[ECO "C01"]
[WhiteElo "1684"]
[BlackElo "1403"]
[Annotator "NA"]
[PlyCount "33"]
[EventDate "2019.08.02"]
[EventType "swiss"]
[EventCountry "SVK"]
[SourceTitle "playchess.com"]
[Source "ChessBase"]
[SourceQuality "1"]
[TimeControl "40/5400+30:1800+30"]

1. e4 {[%emt 0:00:00]} e6 {[%emt 0:09:59]} 2. d4 {[%emt 0:00:00]} d5 {[%emt 0:00:35]} 3. exd5 {[%emt 0:00:00]} exd5 {[%emt 0:01:04]} 4. Bd3 {[%emt 0:00:05]} Bb4+ {[%emt 0:01:01]} 5. c3 {[%emt 0:00:12]} Ba5 {[%emt 0:00:11]} 6. Nf3 {[%emt 0:00:27]} h6 {[%emt 0:01:03]} 7. O-O {[%emt 0:00:18]} Nf6 {[%emt 0:00:04]} 8. Re1+ {[%emt 0:00:49]} Be6 {[%emt 0:00:48]} 9. Qa4+ {[%emt 0:07:42]} c6 {[%emt 0:01:42]} 10. Rxe6+ {[%emt 0:08:24]} fxe6 {[%emt 0:01:01]} 11. Bg6+ {[%emt 0:00:08]} Kd7 {[%emt 0:03:51]} 12. Ne5+ {[%emt 0:00:32]} Kc8 {[%emt 0:00:52]} 13. Nf7 {[%emt 0:01:41]} b5 {[%emt 0:00:32]} 14. Qa3 {[%emt 0:00:25]} Qf8 {[%emt 0:02:10]} 15. Qxa5 {[%emt 0:01:36]} Rg8 {[%emt 0:00:13]} 16. Bf4 {[%emt 0:01:59]} Nfd7 {[%emt 0:00:55]} 17. Qc7# {[%emt 0:00:13]} 1-0

[Event "EYCC Girls-U12 2019"]
[Site "Bratislava"]
[Date "2019.08.02"]
[Round "1.11"]
[White "Bondar, Daria"]
[Black "Karaivanova, Petya"]
[Result "0-1"]
[ECO "C99"]
[WhiteElo "1265"]
[BlackElo "1792"]
[Annotator "NA"]
[PlyCount "144"]
[EventDate "2019.08.02"]
[EventType "swiss"]
[EventCountry "SVK"]
[SourceTitle "playchess.com"]
[Source "ChessBase"]
[SourceQuality "1"]
[TimeControl "40/5400+30:1800+30"]

1. e4 {[%emt 0:00:00]} e5 {[%emt 0:00:00]} 2. Nf3 {[%emt 0:00:00]} Nc6 {[%emt 0:00:00]} 3. Bb5 {[%emt 0:00:00]} a6 {[%emt 0:00:00]} 4. Ba4 {[%emt 0:00:00]} Nf6 {[%emt 0:00:00]} 5. O-O {[%emt 0:00:09]} b5 {[%emt 0:00:03]} 6. Bb3 {[%emt 0:00:06]} Be7 {[%emt 0:00:11]} 7. Re1 {[%emt 0:00:18]} d6 {[%emt 0:00:08]} 8. c3 {[%emt 0:00:27]} O-O {[%emt 0:01:24]} 9. h3 {[%emt 0:00:28]} Na5 {[%emt 0:00:24]} 10. Bc2 {[%emt 0:00:29]} c5 {[%emt 0:01:17]} 11. d4 {[%emt 0:01:13]} cxd4 {[%emt 0:04:38]} 12. cxd4 {[%emt 0:00:14]} Qc7 {[%emt 0:02:25]} 13. Nbd2 {[%emt 0:03:50]} Bb7 {[%emt 0:08:39]} 14. d5 {[%emt 0:13:02]} Bc8 {[%emt 0:12:03]} 15. Nf1 {[%emt 0:06:22]} Bd7 {[%emt 0:03:26]} 16. Ng3 {[%emt 0:04:21]} Rac8 {[%emt 0:04:45]} 17. Bd3 {[%emt 0:01:29]} h6 {[%emt 0:07:30]} 18. b3 {[%emt 0:14:37]} Nb7 {[%emt 0:04:07]} 19. Bb2 {[%emt 0:07:59]} Nc5 {[%emt 0:00:50]} 20. Bf1 {[%emt 0:01:40]} Qb6 {[%emt 0:06:12]} 21. Rc1 {[%emt 0:04:13]} Nh7 {[%emt 0:01:51]} 22. Bd3 {[%emt 0:08:13]} Ng5 {[%emt 0:03:36]} 23. Nxg5 {[%emt 0:03:23]} Bxg5 {[%emt 0:04:23]} 24. Rb1 {[%emt 0:04:18]} Bh4 {[%emt 0:02:30]} 25. Qf3 {[%emt 0:03:47]} f5 {[%emt 0:05:27]} 26. exf5 {[%emt 0:09:39]} Bxg3 {[%emt 0:00:56]} 27. Qxg3 {[%emt 0:01:18]} Nxd3 {[%emt 0:00:08]} 28. Qxd3 {[%emt 0:01:35]} Bxf5 {[%emt 0:00:54]} 29. Qd2 {[%emt 0:02:09]} Bxb1 {[%emt 0:02:37]} 30. Rxb1 {[%emt 0:00:06]} Rc7 {[%emt 0:03:43]} 31. Bc3 {[%emt 0:03:10]} Rcf7 {[%emt 0:02:24]} 32. Rf1 {[%emt 0:00:41]} Rf4 {[%emt 0:02:36]} 33. g3 {[%emt 0:02:41]} Rf3 {[%emt 0:02:11]} 34. Kg2 {[%emt 0:02:09]} R3f7 {[%emt 0:04:51]} 35. Ba5 {[%emt 0:00:26]} Qd4 {[%emt 0:03:33]} 36. Qxd4 {[%emt 0:00:16]} exd4 {[%emt 0:00:04]} 37. g4 {[%emt 0:00:37]} Rf4 {[%emt 0:03:01]} 38. Bc7 {[%emt 0:00:35]} R8f6 {[%emt 0:02:10]} 39. f3 {[%emt 0:00:29]} d3 {[%emt 0:01:31]} 40. Ba5 {[%emt 0:00:00]} b4 {[%emt 0:00:00]} 41. Bd8 {[%emt 0:04:22]} Rf7 {[%emt 0:05:36]} 42. Bb6 {[%emt 0:00:55]} d2 {[%emt 0:09:30]} 43. Rd1 {[%emt 0:03:55]} Rxf3 {[%emt 0:00:12]} 44. Rxd2 {[%emt 0:00:04]} Rc3 {[%emt 0:01:59]} 45. Ba5 {[%emt 0:01:36]} Rf4 {[%emt 0:03:14]} 46. a3 {[%emt 0:03:02]} Rxb3 {[%emt 0:02:18]} 47. Bxb4 {[%emt 0:00:06]} Rf6 {[%emt 0:01:32]} 48. Rd4 {[%emt 0:06:16]} Rb2+ {[%emt 0:02:11]} 49. Kg3 {[%emt 0:01:05]} Kh7 {[%emt 0:01:41]} 50. Rd3 {[%emt 0:01:37]} Rb1 {[%emt 0:00:28]} 51. Kg2 {[%emt 0:02:11]} Rb2+ {[%emt 0:00:49]} 52. Kg3 {[%emt 0:01:39]} Rb1 {[%emt 0:00:05]} 53. Kg2 {[%emt 0:00:08]} Rb2+ {[%emt 0:00:12]} 54. Kg3 {[%emt 0:00:04]} Rc2 {[%emt 0:00:15]} 55. Rd4 {[%emt 0:05:49]} Rcf2 {[%emt 0:01:36]} 56. Rd3 {[%emt 0:03:49]} Rf1 {[%emt 0:00:10]} 57. Kg2 {[%emt 0:01:39]} R1f2+ {[%emt 0:00:36]} 58. Kg3 {[%emt 0:00:18]} Rf1 {[%emt 0:00:05]} 59. Kg2 {[%emt 0:00:07]} R1f2+ {[%emt 0:00:08]} 60. Kg3 {[%emt 0:00:03]} Rc2 {[%emt 0:02:00]} 61. Rd4 {[%emt 0:00:55]} Ra2 {[%emt 0:00:51]} 62. Rd3 {[%emt 0:00:10]} Kg8 {[%emt 0:02:57]} 63. Rf3 {[%emt 0:02:46]} Rg6 {[%emt 0:02:14]} 64. h4 {[%emt 0:02:06]} Ra1 {[%emt 0:00:36]} 65. Kf4 {[%emt 0:00:41]} Rg1 {[%emt 0:01:07]} 66. Kf5 {[%emt 0:00:35]} Rf6+ {[%emt 0:00:59]} 67. Ke4 {[%emt 0:00:14]} Rxg4+ {[%emt 0:00:06]} 68. Ke3 {[%emt 0:00:07]} Rxf3+ {[%emt 0:01:26]} 69. Kxf3 {[%emt 0:00:04]} Rd4 {[%emt 0:00:22]} 70. Bxd6 {[%emt 0:00:11]} Rxd5 {[%emt 0:00:04]} 71. Bb4 {[%emt 0:00:16]} a5 {[%emt 0:01:20]} 72. Be1 {[%emt 0:00:33]} Rd3+ {[%emt 0:00:17]} 0-1

[Event "EYCC Girls-U12 2019"]
[Site "Bratislava"]
[Date "2019.08.02"]
[Round "1.12"]
[White "Markus, Molli Amina"]
[Black "Darmaeva, Nomina"]
[Result "1-0"]
[ECO "A22"]
[WhiteElo "1743"]
[BlackElo "1408"]
[Annotator "NA"]
[PlyCount "71"]
[EventDate "2019.08.02"]
[EventType "swiss"]
[EventCountry "SVK"]
[SourceTitle "playchess.com"]
[Source "ChessBase"]
[SourceQuality "1"]
[TimeControl "40/5400+30:1800+30"]

1. c4 {[%emt 0:00:00]} e5 {[%emt 0:00:00]} 2. Nc3 {[%emt 0:00:14]} Nf6 {[%emt 0:00:30]} 3. g3 {[%emt 0:00:40]} d5 {[%emt 0:01:16]} 4. cxd5 {[%emt 0:01:27]} Nxd5 {[%emt 0:01:18]} 5. Bg2 {[%emt 0:00:55]} c6 {[%emt 0:01:03]} 6. d3 {[%emt 0:02:05]} Be6 {[%emt 0:02:34]} 7. Nf3 {[%emt 0:01:46]} Bd6 {[%emt 0:04:10]} 8. O-O {[%emt 0:02:12]} h6 {[%emt 0:08:06]} 9. a3 {[%emt 0:05:45]} Nd7 {[%emt 0:04:11]} 10. Rb1 {[%emt 0:08:33]} O-O {[%emt 0:04:54]} 11. Nxd5 {[%emt 0:05:17]} cxd5 {[%emt 0:05:29]} 12. b4 {[%emt 0:03:31]} Qe7 {[%emt 0:09:16]} 13. e3 {[%emt 0:18:18]} b6 {[%emt 0:10:58]} 14. Bd2 {[%emt 0:06:59]} Bf5 {[%emt 0:13:15]} 15. Qb3 {[%emt 0:01:26]} Nf6 16. Rbc1 {[%emt 0:06:20]} Rad8 {[%emt 0:12:28]} 17. h3 {[%emt 0:03:35]} Bb8 {[%emt 0:01:49]} 18. Rfd1 {[%emt 0:03:32]} Be6 {[%emt 0:02:57]} 19. Qb2 {[%emt 0:01:08]} Bf5 {[%emt 0:01:54]} 20. Bc3 {[%emt 0:01:12]} Rfe8 {[%emt 0:02:37]} 21. Kh2 {[%emt 0:02:26]} h5 {[%emt 0:05:42]} 22. a4 {[%emt 0:05:24]} Bd6 {[%emt 0:00:58]} 23. Ra1 {[%emt 0:00:32]} a6 {[%emt 0:00:21]} 24. Nh4 {[%emt 0:01:00]} Bc8 {[%emt 0:01:46]} 25. Nf3 {[%emt 0:00:29]} Nh7 {[%emt 0:01:03]} 26. Nd2 {[%emt 0:01:08]} Bb8 {[%emt 0:00:26]} 27. Nf3 {[%emt 0:02:02]} f6 {[%emt 0:01:09]} 28. Qe2 {[%emt 0:00:55]} Qf7 {[%emt 0:00:53]} 29. Qc2 {[%emt 0:01:03]} Nf8 {[%emt 0:00:45]} 30. Qb2 {[%emt 0:03:01]} Qe7 {[%emt 0:01:28]} 31. Nd2 {[%emt 0:00:48]} Qf7 {[%emt 0:00:34]} 32. Nb3 {[%emt 0:00:53]} Be6 {[%emt 0:00:19]} 33. Nc1 {[%emt 0:00:58]} Qg6 {[%emt 0:00:59]} 34. Ne2 {[%emt 0:00:45]} Qf7 {[%emt 0:00:19]} 35. Rac1 {[%emt 0:00:52]} Qd7 {[%emt 0:00:41]} 36. a5 {[%emt 0:01:34]} 1-0

[Event "EYCC Girls-U12 2019"]
[Site "Bratislava"]
[Date "2019.08.02"]
[Round "1.13"]
[White "Khegai, Darya"]
[Black "Schippke, Manon"]
[Result "0-1"]
[ECO "B56"]
[WhiteElo "1402"]
[BlackElo "1743"]
[Annotator "NA"]
[PlyCount "148"]
[EventDate "2019.08.02"]
[EventType "swiss"]
[EventCountry "SVK"]
[SourceTitle "playchess.com"]
[Source "ChessBase"]
[SourceQuality "1"]
[TimeControl "40/5400+30:1800+30"]

1. e4 {[%emt 0:00:00]} c5 {[%emt 0:00:00]} 2. Nf3 {[%emt 0:00:00]} d6 {[%emt 0:00:41]} 3. d4 {[%emt 0:00:48]} cxd4 {[%emt 0:00:34]} 4. Nxd4 {[%emt 0:00:28]} Nf6 {[%emt 0:01:11]} 5. Nc3 {[%emt 0:00:57]} Nc6 {[%emt 0:02:10]} 6. Be3 {[%emt 0:02:26]} Ng4 {[%emt 0:01:26]} 7. Bb5 {[%emt 0:03:56]} Nxe3 {[%emt 0:13:43]} 8. Nxc6 {[%emt 0:00:53]} bxc6 {[%emt 0:12:54]} 9. Bxc6+ {[%emt 0:00:05]} Bd7 {[%emt 0:00:03]} 10. Bxd7+ {[%emt 0:00:15]} Qxd7 {[%emt 0:00:05]} 11. fxe3 {[%emt 0:00:06]} e6 {[%emt 0:01:12]} 12. O-O {[%emt 0:02:45]} Be7 {[%emt 0:01:30]} 13. Qf3 {[%emt 0:23:06]} O-O {[%emt 0:02:09]} 14. Qg4 {[%emt 0:09:38]} Qb7 {[%emt 0:05:08]} 15. Rab1 {[%emt 0:07:35]} Rac8 {[%emt 0:02:35]} 16. Qg3 {[%emt 0:17:43]} Rc5 {[%emt 0:07:14]} 17. Qf2 {[%emt 0:03:28]} Bf6 {[%emt 0:06:41]} 18. Na4 {[%emt 0:00:36]} Rb5 {[%emt 0:01:05]} 19. Qe2 {[%emt 0:03:26]} Rb4 {[%emt 0:01:27]} 20. b3 {[%emt 0:02:38]} Qxe4 {[%emt 0:09:26]} 21. Rf4 {[%emt 0:00:44]} Qb7 {[%emt 0:00:10]} 22. Rbf1 {[%emt 0:03:17]} Be5 {[%emt 0:06:35]} 23. R4f3 {[%emt 0:05:18]} Rh4 {[%emt 0:05:38]} 24. g3 {[%emt 0:00:16]} Rh6 {[%emt 0:00:30]} 25. c4 {[%emt 0:01:51]} Qb4 {[%emt 0:04:34]} 26. Nb2 {[%emt 0:02:56]} Qa3 {[%emt 0:04:36]} 27. Nd3 {[%emt 0:00:27]} Bc3 {[%emt 0:01:09]} 28. Qc2 {[%emt 0:01:42]} Qa5 {[%emt 0:00:56]} 29. Nf2 {[%emt 0:01:02]} Qh5 {[%emt 0:01:35]} 30. Ne4 {[%emt 0:00:29]} Be5 {[%emt 0:01:03]} 31. Qf2 {[%emt 0:01:59]} f5 {[%emt 0:01:37]} 32. Nd2 {[%emt 0:02:39]} g5 {[%emt 0:01:58]} 33. Qg2 {[%emt 0:01:41]} g4 {[%emt 0:01:14]} 34. R3f2 {[%emt 0:00:14]} Qg5 {[%emt 0:01:24]} 35. Re1 {[%emt 0:00:49]} Rh3 {[%emt 0:00:44]} 36. Ree2 {[%emt 0:01:14]} Bc3 {[%emt 0:00:48]} 37. Nf1 {[%emt 0:00:06]} Kh8 {[%emt 0:00:53]} 38. e4 {[%emt 0:00:45]} Bd4 {[%emt 0:00:25]} 39. Kh1 {[%emt 0:00:27]} Bxf2 {[%emt 0:00:08]} 40. Qxf2 {[%emt 0:00:00]} Qf6 {[%emt 0:00:00]} 41. Ne3 {[%emt 0:01:44]} Qg5 {[%emt 0:14:17]} 42. Ng2 {[%emt 0:00:42]} Qg7 {[%emt 0:00:35]} 43. Nf4 {[%emt 0:01:15]} fxe4 {[%emt 0:01:29]} 44. Qg2 {[%emt 0:02:21]} Qa1+ {[%emt 0:07:07]} 45. Qg1 {[%emt 0:00:20]} Qxg1+ {[%emt 0:02:27]} 46. Kxg1 {[%emt 0:00:06]} Rh6 {[%emt 0:00:51]} 47. Rxe4 {[%emt 0:00:13]} e5 {[%emt 0:00:24]} 48. Nd5 {[%emt 0:00:19]} Rg6 {[%emt 0:00:20]} 49. b4 {[%emt 0:00:52]} Rg5 {[%emt 0:01:59]} 50. Ne3 {[%emt 0:00:31]} h5 {[%emt 0:01:05]} 51. a4 {[%emt 0:02:02]} Rb8 {[%emt 0:01:37]} 52. b5 {[%emt 0:00:35]} Rd8 {[%emt 0:00:36]} 53. a5 {[%emt 0:00:34]} Kg7 {[%emt 0:00:55]} 54. Kf2 {[%emt 0:04:02]} Kf7 {[%emt 0:01:03]} 55. Ke2 {[%emt 0:00:55]} Ke6 {[%emt 0:00:13]} 56. Kd3 {[%emt 0:00:52]} Rf8 {[%emt 0:00:36]} 57. Nd5 {[%emt 0:01:16]} Rf1 {[%emt 0:01:11]} 58. Re2 {[%emt 0:01:09]} Ra1 {[%emt 0:01:45]} 59. b6 {[%emt 0:00:44]} Rxa5 {[%emt 0:01:39]} 60. b7 {[%emt 0:01:34]} Ra3+ {[%emt 0:00:46]} 61. Ke4 {[%emt 0:00:55]} Rb3 {[%emt 0:00:16]} 62. Nc7+ {[%emt 0:00:38]} Kd7 {[%emt 0:00:09]} 63. Nb5 {[%emt 0:00:04]} Rxb5 {[%emt 0:01:27]} 64. cxb5 {[%emt 0:00:11]} Kc7 {[%emt 0:00:08]} 65. Rc2+ {[%emt 0:00:31]} Kxb7 {[%emt 0:00:05]} 66. Rc6 {[%emt 0:00:05]} Rg6 {[%emt 0:00:37]} 67. Kf5 {[%emt 0:00:39]} Rh6 {[%emt 0:00:12]} 68. Kg5 {[%emt 0:00:04]} Re6 {[%emt 0:00:52]} 69. Kf5 {[%emt 0:00:08]} Re8 {[%emt 0:00:05]} 70. Rxd6 {[%emt 0:00:41]} e4 {[%emt 0:00:05]} 71. Rd2 {[%emt 0:03:07]} e3 {[%emt 0:00:11]} 72. Re2 {[%emt 0:00:04]} Kb6 {[%emt 0:00:05]} 73. Kg5 {[%emt 0:00:04]} Kxb5 {[%emt 0:00:26]} 74. Kxh5 {[%emt 0:00:06]} Re4 {[%emt 0:00:08]} 0-1

[Event "EYCC Girls-U12 2019"]
[Site "Bratislava"]
[Date "2019.08.02"]
[Round "1.14"]
[White "Tran, Alva Ling"]
[Black "Smirnova, Jekaterina"]
[Result "0-1"]
[ECO "C54"]
[WhiteElo "1712"]
[BlackElo "1372"]
[Annotator "NA"]
[PlyCount "118"]
[EventDate "2019.08.02"]
[EventType "swiss"]
[EventCountry "SVK"]
[SourceTitle "playchess.com"]
[Source "ChessBase"]
[SourceQuality "1"]
[TimeControl "40/5400+30:1800+30"]

1. e4 {[%emt 0:00:00]} e5 {[%emt 0:00:00]} 2. Nf3 {[%emt 0:00:00]} Nc6 {[%emt 0:00:00]} 3. Bc4 {[%emt 0:00:00]} Bc5 {[%emt 0:00:17]} 4. c3 {[%emt 0:00:11]} Nf6 {[%emt 0:11:08]} 5. d4 {[%emt 0:00:21]} exd4 {[%emt 0:00:12]} 6. cxd4 {[%emt 0:00:11]} Bb4+ {[%emt 0:01:26]} 7. Nc3 {[%emt 0:00:24]} Nxe4 {[%emt 0:11:38]} 8. O-O {[%emt 0:00:57]} Bxc3 {[%emt 0:03:24]} 9. d5 {[%emt 0:03:22]} Ne5 {[%emt 0:15:27]} 10. Qe2 {[%emt 0:20:53]} Nxf3+ {[%emt 0:05:16]} 11. Qxf3 {[%emt 0:01:45]} Bf6 {[%emt 0:06:57]} 12. Re1 {[%emt 0:11:38]} O-O {[%emt 0:01:32]} 13. Qxe4 {[%emt 0:07:39]} d6 {[%emt 0:00:50]} 14. Bd3 {[%emt 0:05:52]} g6 {[%emt 0:00:26]} 15. Bh6 {[%emt 0:06:54]} Bg7 {[%emt 0:02:10]} 16. Bxg7 {[%emt 0:00:29]} Kxg7 {[%emt 0:00:06]} 17. Bb5 {[%emt 0:05:24]} Bd7 {[%emt 0:00:50]} 18. Bxd7 {[%emt 0:00:14]} Qxd7 {[%emt 0:00:30]} 19. Qe7 {[%emt 0:01:05]} Qd8 {[%emt 0:01:25]} 20. Qxd8 {[%emt 0:06:13]} Raxd8 {[%emt 0:00:30]} 21. Rac1 {[%emt 0:04:40]} Rd7 {[%emt 0:00:21]} 22. Re3 {[%emt 0:00:53]} f5 {[%emt 0:00:37]} 23. f3 {[%emt 0:01:10]} Rff7 {[%emt 0:00:14]} 24. Rb3 {[%emt 0:03:17]} b6 {[%emt 0:01:01]} 25. Kf2 {[%emt 0:01:24]} Kf6 {[%emt 0:00:28]} 26. f4 {[%emt 0:02:20]} Rfe7 {[%emt 0:00:25]} 27. Re3 {[%emt 0:06:37]} Kf7 {[%emt 0:01:11]} 28. b4 {[%emt 0:01:46]} Ke8 {[%emt 0:00:38]} 29. Rcc3 {[%emt 0:04:18]} Rxe3 {[%emt 0:00:36]} 30. Rxe3+ {[%emt 0:02:15]} Re7 {[%emt 0:00:06]} 31. Ra3 {[%emt 0:00:27]} Re4 {[%emt 0:00:43]} 32. Rxa7 {[%emt 0:00:46]} Kd7 {[%emt 0:00:33]} 33. Ra8 {[%emt 0:01:02]} Rxb4 {[%emt 0:02:17]} 34. Rh8 {[%emt 0:00:58]} Rxf4+ {[%emt 0:00:15]} 35. Kg3 {[%emt 0:00:49]} Re4 {[%emt 0:00:32]} 36. Rxh7+ {[%emt 0:00:17]} Re7 {[%emt 0:00:08]} 37. Rh6 {[%emt 0:00:23]} Rg7 {[%emt 0:00:07]} 38. Kf4 {[%emt 0:00:28]} c6 {[%emt 0:00:35]} 39. dxc6+ {[%emt 0:00:17]} Kxc6 {[%emt 0:00:16]} 40. h4 {[%emt 0:00:00]} Ra7 {[%emt 0:00:00]} 41. Rxg6 {[%emt 0:02:10]} Rxa2 {[%emt 0:03:18]} 42. h5 {[%emt 0:08:10]} Rf2+ {[%emt 0:01:04]} 43. Kg3 {[%emt 0:00:31]} Rf1 {[%emt 0:00:30]} 44. Rf6 {[%emt 0:02:49]} b5 {[%emt 0:00:28]} 45. h6 {[%emt 0:02:37]} Rh1 {[%emt 0:01:24]} 46. Kf4 {[%emt 0:01:00]} Rh5 {[%emt 0:00:42]} 47. Ke3 {[%emt 0:01:54]} Kc5 {[%emt 0:00:51]} 48. g4 {[%emt 0:02:21]} fxg4 49. Kf4 {[%emt 0:02:15]} g3 {[%emt 0:01:55]} 50. Kxg3 {[%emt 0:00:16]} b4 {[%emt 0:00:07]} 51. Kg4 {[%emt 0:00:38]} Rh1 {[%emt 0:00:14]} 52. Rf5+ {[%emt 0:01:23]} d5 {[%emt 0:00:14]} 53. Rh5 {[%emt 0:02:11]} Rg1+ {[%emt 0:00:26]} 54. Kf5 {[%emt 0:00:24]} b3 {[%emt 0:01:50]} 55. h7 {[%emt 0:03:54]} b2 {[%emt 0:00:13]} 56. h8=Q {[%emt 0:00:27]} b1=Q+ {[%emt 0:00:14]} 57. Ke6 {[%emt 0:01:25]} Qg6+ {[%emt 0:00:30]} 58. Kd7 {[%emt 0:02:03]} Qf7+ {[%emt 0:00:25]} 59. Kd8 {[%emt 0:00:46]} Rg8+ {[%emt 0:00:09]} 0-1

[Event "EYCC Girls-U12 2019"]
[Site "Bratislava"]
[Date "2019.08.02"]
[Round "1.15"]
[White "Lazniewska, Zofia"]
[Black "Lomakina, Anzhelika"]
[Result "0-1"]
[ECO "C48"]
[WhiteElo "1375"]
[BlackElo "1752"]
[Annotator "NA"]
[PlyCount "118"]
[EventDate "2019.08.02"]
[EventType "swiss"]
[EventCountry "SVK"]
[SourceTitle "playchess.com"]
[Source "ChessBase"]
[SourceQuality "1"]
[TimeControl "40/5400+30:1800+30"]

1. e4 {[%emt 0:00:00]} e5 {[%emt 0:00:00]} 2. Nf3 {[%emt 0:00:00]} Nc6 {[%emt 0:00:00]} 3. Nc3 {[%emt 0:00:00]} Nf6 {[%emt 0:00:00]} 4. Bb5 {[%emt 0:00:00]} Nd4 {[%emt 0:00:32]} 5. Ba4 {[%emt 0:00:08]} Bd6 {[%emt 0:19:49]} 6. d3 {[%emt 0:02:11]} Qe7 {[%emt 0:04:06]} 7. Nxd4 {[%emt 0:16:26]} exd4 {[%emt 0:00:12]} 8. Ne2 {[%emt 0:00:20]} Bc5 {[%emt 0:02:28]} 9. O-O {[%emt 0:07:25]} O-O {[%emt 0:01:04]} 10. Bg5 {[%emt 0:02:38]} h6 {[%emt 0:07:47]} 11. Bh4 {[%emt 0:00:30]} g5 {[%emt 0:02:43]} 12. Bg3 {[%emt 0:00:27]} d5 {[%emt 0:00:16]} 13. e5 {[%emt 0:16:24]} Nh5 {[%emt 0:01:43]} 14. Qe1 {[%emt 0:05:14]} Bg4 {[%emt 0:08:20]} 15. f3 {[%emt 0:01:38]} Bf5 {[%emt 0:02:16]} 16. Bf2 {[%emt 0:04:24]} Qxe5 {[%emt 0:08:06]} 17. g4 {[%emt 0:07:43]} Bd6 {[%emt 0:03:12]} 18. Ng3 {[%emt 0:00:38]} Nxg3 {[%emt 0:00:50]} 19. Bxg3 {[%emt 0:00:05]} Qxe1 {[%emt 0:00:13]} 20. Raxe1 {[%emt 0:01:09]} Bxg3 {[%emt 0:00:10]} 21. hxg3 {[%emt 0:00:09]} Be6 {[%emt 0:00:12]} 22. Bb3 {[%emt 0:02:52]} c5 {[%emt 0:04:14]} 23. a3 {[%emt 0:02:55]} c4 {[%emt 0:01:50]} 24. Ba2 {[%emt 0:00:29]} Rac8 {[%emt 0:02:25]} 25. Rc1 {[%emt 0:00:39]} Rc7 {[%emt 0:01:12]} 26. Rfd1 {[%emt 0:00:50]} Rd8 {[%emt 0:01:13]} 27. Kf2 {[%emt 0:02:28]} b5 {[%emt 0:01:04]} 28. Bb1 {[%emt 0:04:06]} Kg7 {[%emt 0:01:12]} 29. Ba2 {[%emt 0:01:06]} Kf6 {[%emt 0:00:41]} 30. Bb1 {[%emt 0:00:12]} a5 {[%emt 0:00:25]} 31. Ba2 {[%emt 0:05:45]} Ke5 {[%emt 0:00:44]} 32. Re1+ {[%emt 0:00:26]} Kd6 {[%emt 0:00:12]} 33. Red1 {[%emt 0:00:14]} Kc5 {[%emt 0:00:40]} 34. Bb1 {[%emt 0:04:41]} Kb6 {[%emt 0:01:26]} 35. Ba2 {[%emt 0:00:16]} a4 {[%emt 0:01:07]} 36. Bb1 {[%emt 0:00:44]} c3 {[%emt 0:01:16]} 37. b4 {[%emt 0:01:48]} axb3 {[%emt 0:00:24]} 38. cxb3 {[%emt 0:00:13]} Ra8 {[%emt 0:00:55]} 39. Bc2 {[%emt 0:00:27]} Rxa3 {[%emt 0:00:16]} 40. Rh1 {[%emt 0:00:00]} Kc5 {[%emt 0:00:00]} 41. Rxh6 {[%emt 0:01:21]} Kb4 {[%emt 0:03:43]} 42. Rh5 {[%emt 0:01:36]} Ra2 {[%emt 0:01:10]} 43. Rxg5 {[%emt 0:00:29]} Rxc2+ {[%emt 0:00:28]} 44. Rxc2 {[%emt 0:00:13]} Kxb3 {[%emt 0:00:06]} 45. Rc1 {[%emt 0:00:27]} Kb2 {[%emt 0:00:13]} 46. Re1 {[%emt 0:00:19]} c2 {[%emt 0:00:21]} 47. Re2 {[%emt 0:00:35]} Kb1 {[%emt 0:00:28]} 48. Rge5 {[%emt 0:00:21]} c1=Q {[%emt 0:00:26]} 49. Re1 {[%emt 0:00:07]} Rc2+ {[%emt 0:00:33]} 50. R5e2 {[%emt 0:00:21]} Rxe2+ {[%emt 0:00:11]} 51. Kxe2 {[%emt 0:00:08]} b4 {[%emt 0:00:07]} 52. Rxc1+ {[%emt 0:00:08]} Kxc1 {[%emt 0:00:03]} 53. Kf1 {[%emt 0:00:11]} b3 {[%emt 0:00:02]} 54. Kg1 {[%emt 0:00:08]} b2 {[%emt 0:00:06]} 55. Kh1 {[%emt 0:00:06]} b1=Q {[%emt 0:00:04]} 56. f4 {[%emt 0:00:10]} Bxg4 {[%emt 0:00:10]} 57. f5 {[%emt 0:00:09]} Qc2 {[%emt 0:00:05]} 58. f6 {[%emt 0:00:14]} Bf3+ {[%emt 0:00:04]} 59. Kg1 {[%emt 0:00:08]} Qg2# {[%emt 0:00:04]} 0-1